bitfinex-derivatives/quotes_BTCF0:USTF0_20240917
["timestamp","ask_amount","ask_price","bid_price","bid_amount"]
[1726606658989,0.3608,60185.0,60184.0,0.083057]
[1726606659185,0.3608,60185.0,60184.0,0.273057]
[1726606659384,0.1015,60193.0,60184.0,0.273057]
[1726606659687,0.1015,60193.0,60184.0,0.19]
[1726606660296,0.18265089,60186.0,60184.0,0.19]
[1726606660485,0.12373902,60185.0,60184.0,0.19]
[1726606661183,0.28884461,60185.0,60184.0,0.274057]
[1726606661383,0.12373902,60185.0,60184.0,0.274057]
[1726606661892,0.12373902,60185.0,60184.0,0.284779]
[1726606662591,0.12373902,60185.0,60184.0,0.645579]
[1726606662779,0.14848221,60188.0,60186.0,0.083055]
[1726606662980,0.14848221,60191.0,60189.0,0.08305]
[1726606663179,0.00249271,60195.0,60190.0,2.1498]
[1726606663385,0.00249271,60195.0,60194.0,0.19]
[1726606663579,0.00249271,60195.0,60194.0,0.273043]
[1726606665198,0.00249271,60195.0,60194.0,0.275043]
[1726606666491,0.00249271,60195.0,60194.0,0.085043]
[1726606666700,0.00249271,60195.0,60194.0,0.09445991]
[1726606669498,0.00249271,60195.0,60194.0,0.28445991]
[1726606669695,0.08553471,60195.0,60194.0,0.002]
[1726606671999,0.08553471,60195.0,60194.0,0.192]
[1726606672000,0.00249271,60195.0,60194.0,0.192]
[1726606673200,0.00249271,60195.0,60194.0,0.275043]
[1726606674399,0.00249271,60195.0,60194.0,0.28484473]
[1726606674899,0.0956,60207.0,60204.0,0.08303]
[1726606675096,0.10518746,60207.0,60204.0,0.08303]
[1726606675292,0.18821346,60207.0,60204.0,0.08303]
[1726606676204,0.18821346,60207.0,60204.0,0.08403]
[1726606677003,0.083028,60205.0,60204.0,0.08403]
[1726606677199,0.083028,60205.0,60204.0,0.001]
[1726606678099,0.083028,60205.0,60204.0,0.002]
[1726606679197,0.443828,60205.0,60204.0,0.002]
[1726606679598,0.083028,60205.0,60204.0,0.002]
[1726606680398,0.443828,60205.0,60204.0,0.002]
[1726606680702,0.083036,60200.0,60199.0,0.083037]
[1726606681707,0.083039,60197.0,60192.0,0.00974285]
[1726606681906,0.083039,60197.0,60195.0,0.083042]
[1726606682103,0.36329213,60201.0,60195.0,0.083042]
[1726606682104,0.083041,60196.0,60195.0,0.083042]
[1726606683512,0.1746857,60196.0,60195.0,0.083042]
[1726606683702,0.1756857,60196.0,60195.0,0.084042]
[1726606684409,0.26769189,60196.0,60195.0,0.085042]
[1726606684810,0.35933659,60196.0,60195.0,0.085042]
[1726606685208,0.1766857,60196.0,60195.0,0.085042]
[1726606686614,0.1766857,60196.0,60195.0,0.002]
[1726606688510,0.2597267,60196.0,60195.0,0.002]
[1726606689115,0.26929167,60196.0,60195.0,0.002]
[1726606689413,0.26929167,60196.0,60182.0,0.1019]
[1726606689414,0.083043,60195.0,60177.0,0.5508]
[1726606689607,0.14922388,60183.0,60177.0,0.55168]
[1726606689807,0.14922388,60183.0,60181.0,0.273061]
[1726606689808,0.0916447,60182.0,60181.0,0.273061]
[1726606690319,0.083059,60183.0,60181.0,0.273061]
[1726606691009,0.002,60182.0,60181.0,0.273061]
[1726606691411,0.08506,60182.0,60181.0,0.083061]
[1726606691809,0.08306,60182.0,60181.0,0.083061]
[1726606692315,0.083057,60184.0,60182.0,0.08306]
[1726606692715,0.08306,60182.0,60181.0,0.002]
[1726606693012,0.083059,60183.0,60182.0,0.08306]
[1726606693905,0.083059,60183.0,60182.0,0.08406]
[1726606694512,0.084059,60183.0,60182.0,0.08406]
[1726606695018,0.001,60183.0,60182.0,0.08406]
[1726606695809,0.003,60183.0,60182.0,0.08506]
[1726606702311,0.003,60183.0,60182.0,0.44586]
[1726606704814,0.003,60183.0,60182.0,0.08506]
[1726606705121,0.003,60183.0,60182.0,0.08406]
[1726606705320,0.086059,60183.0,60182.0,0.08406]
[1726606706014,0.086059,60183.0,60182.0,0.001]
[1726606706616,0.169118,60183.0,60182.0,0.001]
[1726606706821,0.169118,60183.0,60180.0,0.002492]
[1726606706822,0.082061,60181.0,60180.0,0.002492]
[1726606707420,0.081061,60181.0,60180.0,0.002492]
[1726606707611,0.080061,60181.0,60180.0,0.002492]
[1726606707816,0.080061,60181.0,60180.0,0.085555]
[1726606708519,0.082061,60181.0,60180.0,0.085555]
[1726606708818,0.165122,60181.0,60180.0,0.002492]
[1726606709021,0.083074,60172.0,60168.0,0.3608]
[1726606709214,0.081074,60172.0,60168.0,0.3608]
[1726606709921,0.080074,60172.0,60168.0,0.3608]
[1726606710116,0.083075,60171.0,60163.0,0.3608]
[1726606710426,0.19,60169.0,60163.0,0.3608]
[1726606710623,0.0947,60168.0,60163.0,0.3608]
[1726606710826,0.083085,60164.0,60163.0,0.3608]
[1726606711521,0.0947,60168.0,60163.0,0.3618]
[1726606711718,0.004,60171.0,60166.0,0.083081]
[1726606712324,0.00970849,60171.0,60166.0,0.083081]
[1726606712511,0.002,60172.0,60166.0,0.083081]
[1726606713024,0.083085,60164.0,60163.0,0.002]
[1726606713724,0.083085,60164.0,60163.0,0.001]
[1726606714022,0.083088,60162.0,60161.0,0.00249331]
[1726606714623,0.083088,60162.0,60157.0,0.3608]
[1726606714624,0.19,60162.0,60157.0,0.41023065]
[1726606714924,0.19,60162.0,60150.0,0.3608]
[1726606714925,0.19,60158.0,60153.0,0.04943065]
[1726606715127,0.19,60158.0,60150.0,0.443904]
[1726606715128,0.273099,60154.0,60150.0,0.3608]
[1726606715521,0.083108,60147.0,60146.0,0.0024937]
[1726606716329,0.083108,60147.0,60146.0,0.0122474]
[1726606716522,0.083108,60147.0,60146.0,0.0024937]
[1726606717020,0.006,60147.0,60146.0,0.0866037]
[1726606717422,0.083103,60151.0,60147.0,0.083108]
[1726606717615,0.083103,60151.0,60148.0,0.083107]
[1726606717818,0.083103,60151.0,60146.0,0.0034937]
[1726606717819,0.0935,60150.0,60149.0,0.083106]
[1726606718333,0.3632937,60160.0,60146.0,0.20407248]
[1726606718521,0.3632937,60160.0,60158.0,0.083093]
[1726606718924,0.37277636,60160.0,60158.0,0.083093]
[1726606719128,0.37277636,60160.0,60157.0,0.19]
[1726606719129,0.3632937,60160.0,60159.0,0.083092]
[1726606719725,0.0024937,60160.0,60159.0,0.083092]
[1726606720331,0.0134937,60160.0,60159.0,0.083092]
[1726606720722,0.0134937,60160.0,60159.0,0.084092]
[1726606720723,0.0194937,60160.0,60159.0,0.084092]
[1726606720923,0.0084937,60160.0,60159.0,0.09355651]
[1726606721123,0.0134937,60160.0,60159.0,0.09355651]
[1726606721738,0.0084937,60160.0,60159.0,0.09355651]
[1726606722031,0.0134937,60160.0,60159.0,0.09355651]
[1726606723038,0.0124937,60160.0,60159.0,0.09355651]
[1726606723426,0.0024937,60160.0,60159.0,1.19123651]
[1726606723632,0.0094937,60160.0,60159.0,1.19123651]
[1726606724435,0.0084937,60160.0,60159.0,1.19123651]
[1726606724833,0.3608,60172.0,60171.0,0.083075]
[1726606725136,0.14920984,60205.0,60159.0,1.19123651]
[1726606725137,0.00954381,60177.0,60175.0,0.08307]
[1726606725436,0.101,60183.0,60175.0,0.27307]
[1726606726033,0.3608,60186.0,60175.0,0.27307]
[1726606726034,0.00974948,60182.0,60175.0,0.27307]
[1726606726237,0.3608,60186.0,60175.0,0.77163]
[1726606726936,0.0034933,60176.0,60175.0,0.77263]
[1726606727437,0.0074933,60176.0,60175.0,0.77263]
[1726606727938,0.0074933,60176.0,60175.0,0.27407]
[1726606728132,0.0074933,60176.0,60175.0,0.37247]
[1726606728539,0.0074933,60176.0,60175.0,0.38219161]
[1726606730739,0.3208,60195.0,60194.0,0.083043]
[1726606730938,0.1948,60197.0,60194.0,0.273043]
[1726606731136,0.1948,60197.0,60195.0,0.083042]
[1726606731639,0.11111034,60196.0,60195.0,0.083042]
[1726606731943,0.089042,60195.0,60194.0,0.001]
[1726606732234,0.089042,60195.0,60180.0,0.3608]
[1726606732235,0.94337184,60195.0,60180.0,0.3608]
[1726606732430,0.19,60187.0,60180.0,0.3608]
[1726606732828,0.19,60187.0,60183.0,0.083058]
[1726606733027,0.19,60187.0,60180.0,0.3608]
[1726606733433,0.19,60187.0,60185.0,0.083056]
[1726606733634,0.19,60187.0,60180.0,0.3618]
[1726606733635,0.00249279,60191.0,60190.0,0.083049]
[1726606734745,0.083051,60189.0,60183.0,0.001]
[1726606735046,0.19449279,60191.0,60190.0,0.001]
[1726606735530,0.2861499,60191.0,60190.0,0.001]
[1726606735734,0.0961499,60191.0,60190.0,0.084049]
[1726606736042,0.0961499,60191.0,60190.0,0.085049]
[1726606736741,0.0941499,60191.0,60190.0,0.084049]
[1726606737542,0.1011499,60191.0,60190.0,0.085049]
[1726606738738,0.15806445,60191.0,60190.0,0.085049]
[1726606738937,0.1011499,60191.0,60190.0,0.085049]
[1726606739942,0.24972156,60191.0,60190.0,0.085049]
[1726606740445,0.1841979,60191.0,60190.0,0.002]
[1726606742243,0.1841979,60191.0,60190.0,0.085049]
[1726606743038,0.2885979,60191.0,60190.0,0.085049]
[1726606743543,0.19694079,60191.0,60190.0,0.085049]
[1726606747849,0.00949279,60191.0,60190.0,0.085049]
[1726606750456,0.00949279,60191.0,60190.0,0.445849]
[1726606750854,0.06046964,60191.0,60190.0,0.445849]
[1726606751053,0.19153248,60191.0,60190.0,0.445849]
[1726606751246,0.0501626,60191.0,60190.0,0.445849]
[1726606751447,0.10113945,60191.0,60190.0,0.445849]
[1726606751850,0.0501626,60191.0,60190.0,0.445849]
[1726606753149,0.05016245,60191.0,60190.0,0.445849]
[1726606755364,0.00949279,60191.0,60190.0,0.445849]
[1726606755652,0.10113911,60191.0,60190.0,0.445849]
[1726606758659,0.05016245,60191.0,60190.0,0.445849]
[1726606760565,0.0822428,60191.0,60190.0,0.445849]
[1726606760756,0.0822428,60191.0,60190.0,0.635849]
[1726606762756,0.0822428,60191.0,60190.0,1.134249]
[1726606763063,0.04157314,60191.0,60190.0,0.718898]
[1726606763462,0.04157314,60191.0,60190.0,1.217298]
[1726606763850,0.04157314,60191.0,60190.0,1.817298]
[1726606764567,0.03457314,60191.0,60190.0,1.816298]
[1726606764860,0.03957314,60191.0,60190.0,1.817298]
[1726606765066,0.03957314,60191.0,60190.0,1.217298]
[1726606767452,0.03957314,60191.0,60190.0,0.718898]
[1726606768964,0.03957314,60191.0,60190.0,0.358098]
[1726606769167,0.03957314,60191.0,60190.0,0.718898]
[1726606769865,0.03957314,60191.0,60190.0,0.635849]
[1726606770258,0.12262114,60191.0,60190.0,0.3628]
[1726606770463,0.32121031,60191.0,60190.0,0.3628]
[1726606770763,0.33119302,60191.0,60190.0,0.3628]
[1726606770970,0.28021479,60191.0,60190.0,0.3628]
[1726606771264,0.13121031,60191.0,60190.0,0.3628]
[1726606771669,0.14066186,60191.0,60190.0,0.3628]
[1726606772569,0.14066186,60191.0,60190.0,0.002]
[1726606773565,0.19164297,60191.0,60190.0,0.002]
[1726606777875,0.10859978,60191.0,60186.0,0.00249208]
[1726606778061,0.083053,60187.0,60186.0,0.00249208]
[1726606778364,0.17470844,60187.0,60186.0,0.00249208]
[1726606779262,0.17470844,60187.0,60186.0,0.08654508]
[1726606779865,0.18070844,60187.0,60186.0,0.08754508]
[1726606780363,0.26376144,60187.0,60186.0,0.00449208]
[1726606780566,0.26376144,60187.0,60176.0,0.08556052]
[1726606780567,0.083067,60177.0,60176.0,0.08556052]
[1726606780773,0.083067,60177.0,60176.0,0.00249252]
[1726606781175,0.20681414,60177.0,60176.0,0.00249252]
[1726606781875,0.084067,60177.0,60176.0,0.00249252]
[1726606782169,0.167134,60177.0,60176.0,0.00249252]
[1726606782371,0.20781762,60177.0,60176.0,0.00249252]
[1726606782569,0.20781771,60177.0,60176.0,0.00249252]
[1726606782769,1.30633771,60177.0,60176.0,0.00349252]
[1726606783472,1.265654,60177.0,60176.0,0.00349252]
[1726606783773,1.269654,60177.0,60176.0,0.00349252]
[1726606784075,0.669654,60177.0,60176.0,0.00349252]
[1726606784271,1.27905772,60177.0,60176.0,0.00349252]
[1726606784575,0.083082,60166.0,60165.0,0.00249314]
[1726606784770,0.443882,60166.0,60165.0,0.00249314]
[1726606785877,0.443882,60166.0,60165.0,0.00649314]
[1726606786072,0.45360862,60166.0,60165.0,0.00649314]
[1726606786273,0.45460862,60166.0,60165.0,0.01449314]
[1726606787076,0.09380862,60166.0,60165.0,0.01449314]
[1726606787277,0.45460862,60166.0,60165.0,0.01449314]
[1726606787664,0.45460862,60166.0,60165.0,0.01349314]
[1726606787871,0.45460862,60166.0,60165.0,0.01249314]
[1726606789383,0.45460862,60166.0,60165.0,0.01]
[1726606789384,0.64460862,60166.0,60165.0,0.01]
[1726606790274,1.22633062,60166.0,60165.0,0.01]
[1726606790475,1.82633062,60166.0,60165.0,0.01]
[1726606790675,1.82533062,60166.0,60165.0,0.003]
[1726606791476,0.083092,60160.0,60157.0,0.083094]
[1726606791672,0.083092,60159.0,60157.0,0.083094]
[1726606792469,0.083092,60159.0,60158.0,0.083093]
[1726606793584,0.084092,60159.0,60158.0,0.083093]
[1726606794375,0.084092,60159.0,60148.0,0.3608]
[1726606794376,0.083093,60158.0,60148.0,0.3608]
[1726606794572,0.08311,60146.0,60145.0,0.083111]
[1726606794881,0.3608,60146.0,60137.0,0.2096]
[1726606795074,0.3568,60141.0,60137.0,0.2096]
[1726606795674,0.3568,60141.0,60140.0,0.083118]
[1726606795885,0.3498,60141.0,60140.0,0.083118]
[1726606796084,0.3608,60157.0,60140.0,1.233918]
[1726606796275,0.3608,60157.0,60156.0,0.083096]
[1726606796477,0.5508,60157.0,60152.0,0.083101]
[1726606796685,0.0831,60153.0,60152.0,0.083101]
[1726606797279,0.542475,60157.0,60156.0,0.083096]
[1726606797470,0.3698,60157.0,60156.0,0.084096]
[1726606798281,0.3838,60157.0,60156.0,0.085096]
[1726606798480,0.656895,60157.0,60156.0,0.002]
[1726606799071,0.647895,60157.0,60156.0,0.001]
[1726606799878,0.658895,60157.0,60156.0,0.001]
[1726606800074,0.083098,60155.0,60153.0,0.0826]
[1726606800283,0.083098,60155.0,60154.0,0.083099]
[1726606800484,0.083103,60152.0,60150.0,0.083103]
[1726606800683,0.083103,60152.0,60151.0,0.083103]
[1726606801578,0.082103,60152.0,60151.0,0.083103]
[1726606801972,0.082103,60152.0,60151.0,0.084103]
[1726606802283,0.091103,60152.0,60151.0,0.084103]
[1726606802486,0.451903,60152.0,60151.0,0.001]
[1726606802878,0.456903,60152.0,60151.0,0.001]
[1726606803587,0.455403,60152.0,60151.0,0.001]
[1726606803978,0.46490646,60152.0,60151.0,0.001]
[1726606804484,1.04676946,60152.0,60151.0,0.001]
[1726606804690,0.96366646,60152.0,60151.0,0.001]
[1726606804880,0.46490646,60152.0,60151.0,0.001]
[1726606806278,0.82570646,60152.0,60151.0,0.001]
[1726606806584,2.00756946,60152.0,60151.0,0.001]
[1726606808990,2.09067246,60152.0,60151.0,0.001]
[1726606810395,0.90880946,60152.0,60151.0,0.001]
[1726606813404,0.816203,60152.0,60151.0,0.084103]
[1726606813597,0.7356,60152.0,60151.0,0.084103]
[1726606813890,0.3748,60152.0,60151.0,0.274103]
[1726606814094,0.3608,60164.0,60163.0,0.083086]
[1726606815596,0.3748,60164.0,60163.0,0.083086]
[1726606815786,0.083088,60163.0,60160.0,0.17879]
[1726606817302,0.087088,60163.0,60162.0,0.083088]
[1726606818393,0.083088,60163.0,60162.0,0.084088]
[1726606818595,0.097088,60163.0,60162.0,0.084088]
[1726606819292,0.083088,60163.0,60162.0,0.084088]
[1726606819596,0.097088,60163.0,60162.0,0.085088]
[1726606819901,0.457888,60163.0,60162.0,0.085088]
[1726606821296,0.3748,60163.0,60162.0,0.085088]
[1726606821502,0.014,60163.0,60162.0,0.085088]
[1726606821697,0.014,60163.0,60162.0,0.168176]
[1726606822196,0.3608,60168.0,60167.0,0.083081]
[1726606822499,0.3608,60176.0,60175.0,0.08307]
[1726606822689,0.3608,60176.0,60175.0,0.27307]
[1726606823494,0.3608,60176.0,60175.0,0.08307]
[1726606823993,0.3648,60176.0,60175.0,0.08407]
[1726606824692,0.004,60176.0,60175.0,0.08407]
[1726606825101,0.01,60176.0,60175.0,0.08507]
[1726606825992,0.08276731,60176.0,60175.0,0.08507]
[1726606826194,0.04208806,60176.0,60175.0,0.08507]
[1726606828897,0.04208806,60176.0,60175.0,0.27507]
[1726606830202,0.04208806,60176.0,60175.0,0.27407]
[1726606830906,0.01,60176.0,60175.0,0.27407]
[1726606831298,0.00249272,60181.0,60180.0,0.083063]
[1726606831508,0.00249272,60181.0,60180.0,0.273063]
[1726606831803,0.03457783,60181.0,60180.0,0.273063]
[1726606831998,0.03457783,60181.0,60180.0,1.773063]
[1726606832397,0.04057783,60181.0,60180.0,1.774063]
[1726606832897,0.00849272,60181.0,60180.0,1.774063]
[1726606833295,0.00949272,60181.0,60180.0,1.775063]
[1726606834514,0.00949272,60181.0,60180.0,1.7846023]
[1726606834894,0.00949272,60181.0,60180.0,1.5946023]
[1726606835092,0.09255372,60181.0,60180.0,0.085063]
[1726606836705,0.17561472,60181.0,60180.0,0.002]
[1726606837109,0.083074,60172.0,60171.0,0.00249272]
[1726606837299,0.083083,60166.0,60163.0,0.083086]
[1726606837493,0.3608,60166.0,60165.0,0.083084]
[1726606837811,0.00249323,60170.0,60169.0,0.083078]
[1726606837994,0.00249323,60170.0,60169.0,0.273078]
[1726606838395,0.00249323,60170.0,60165.0,0.083082]
[1726606838595,0.08557123,60170.0,60165.0,0.083082]
[1726606838795,0.08557123,60170.0,60160.0,0.3608]
[1726606838796,0.082083,60166.0,60160.0,0.3608]
[1726606839003,0.082083,60166.0,60162.0,0.083087]
[1726606839209,0.082083,60166.0,60164.0,0.083085]
[1726606839510,0.3608,60165.0,60164.0,0.083085]
[1726606839905,0.3608,60165.0,60159.0,0.00249323]
[1726606840206,0.083087,60163.0,60160.0,0.08409]
[1726606841104,0.04068899,60162.0,60160.0,0.08409]
[1726606841409,0.04068899,60161.0,60160.0,0.08409]
[1726606841601,0.04068899,60161.0,60160.0,0.08309]
[1726606842112,0.04068899,60161.0,60160.0,0.27309]
[1726606842295,0.04068899,60161.0,60160.0,0.27409]
[1726606842695,0.04068899,60161.0,60160.0,0.27309]
[1726606842899,0.04268899,60161.0,60160.0,0.27409]
[1726606843302,0.04268899,60161.0,60160.0,0.27309]
[1726606844003,0.05300068,60161.0,60160.0,0.27309]
[1726606844204,0.09368967,60161.0,60160.0,0.27309]
[1726606844702,0.09468967,60161.0,60160.0,0.27309]
[1726606844898,0.09468967,60161.0,60160.0,0.27409]
[1726606845499,0.09368967,60161.0,60160.0,0.27409]
[1726606845705,0.09468967,60161.0,60160.0,0.08409]
[1726606846105,0.04368899,60161.0,60160.0,0.08409]
[1726606847717,0.05400099,60161.0,60160.0,0.08409]
[1726606847918,0.003,60161.0,60160.0,0.08409]
[1726606854921,0.003,60161.0,60160.0,0.27409]
[1726606856823,0.003,60161.0,60160.0,0.08409]
[1726606862624,0.003,60161.0,60160.0,0.35718]
[1726606862828,0.3608,60171.0,60160.0,1.37277]
[1726606863129,0.3608,60171.0,60169.0,0.083078]
[1726606863324,0.04317843,60170.0,60169.0,0.083078]
[1726606864022,0.04417843,60170.0,60169.0,0.083078]
[1726606864221,0.09517448,60170.0,60169.0,0.083078]
[1726606864822,0.04417843,60170.0,60169.0,0.083078]
[1726606865024,0.04517843,60170.0,60169.0,0.083078]
[1726606865428,0.04517843,60170.0,60169.0,0.09281471]
[1726606865634,0.04517843,60170.0,60169.0,0.09381471]
[1726606865833,0.0426852,60170.0,60169.0,2.03769271]
[1726606866133,0.00132001,60177.0,60169.0,2.97013671]
[1726606866438,0.00132001,60177.0,60176.0,0.19]
[1726606866652,0.14933994,60183.0,60176.0,0.273068]
[1726606866941,0.16593327,60185.0,60180.0,0.273063]
[1726606866942,0.14933994,60185.0,60180.0,0.273063]
[1726606867126,0.3608,60189.0,60180.0,0.273063]
[1726606867127,0.03457652,60181.0,60180.0,0.273063]
[1726606868028,0.03457652,60181.0,60180.0,1.454646]
[1726606868226,0.03457652,60181.0,60180.0,1.455646]
[1726606869234,0.3608,60189.0,60188.0,0.083052]
[1726606869440,0.39288247,60189.0,60188.0,0.273052]
[1726606870530,0.39288247,60189.0,60188.0,0.275052]
[1726606870947,0.39288247,60189.0,60188.0,0.085052]
[1726606871235,0.3608,60189.0,60188.0,0.085052]
[1726606872838,0.0954,60194.0,60193.0,0.083045]
[1726606873143,0.0954,60194.0,60193.0,0.273045]
[1726606874249,0.0954,60194.0,60193.0,0.275045]
[1726606874455,0.00249223,60196.0,60195.0,0.083042]
[1726606876644,0.00249223,60196.0,60195.0,0.084042]
[1726606877443,0.00249223,60196.0,60195.0,0.09366217]
[1726606877848,0.00249223,60196.0,60195.0,0.09466217]
[1726606879343,0.00249223,60196.0,60195.0,0.09366217]
[1726606879549,0.00249223,60196.0,60195.0,0.17770417]
[1726606880743,0.1019,60210.0,60201.0,0.083034]
[1726606880938,0.1019,60210.0,60201.0,0.273034]
[1726606881940,0.1019,60210.0,60209.0,0.083023]
[1726606883146,0.1019,60210.0,60209.0,0.084023]
[1726606883849,0.1019,60210.0,60209.0,0.085023]
[1726606884053,0.1019,60210.0,60209.0,0.002]
[1726606884054,0.184921,60210.0,60209.0,0.002]
[1726606884245,0.1019,60210.0,60209.0,0.002]
[1726606885054,0.184921,60210.0,60209.0,0.085023]
[1726606886147,0.2576486,60210.0,60209.0,0.085023]
[1726606887248,0.2576486,60210.0,60209.0,0.002]
[1726606887651,0.2576486,60210.0,60186.0,0.3608]
[1726606887652,1.68466968,60210.0,60186.0,0.3608]
[1726606887853,0.08305,60190.0,60184.0,0.00249222]
[1726606888040,0.07273763,60189.0,60184.0,0.00249222]
[1726606888745,0.07273763,60189.0,60187.0,0.083053]
[1726606889055,0.04066708,60188.0,60186.0,0.197]
[1726606889252,0.07274735,60187.0,60186.0,0.197]
[1726606889672,0.04066708,60187.0,60186.0,0.197]
[1726606889854,0.04066708,60191.0,60186.0,0.19]
[1726606890055,0.04066708,60190.0,60186.0,0.201]
[1726606890355,0.04066938,60189.0,60186.0,0.201]
[1726606890657,0.04066938,60188.0,60186.0,0.201]
[1726606890867,0.04066938,60187.0,60186.0,0.201]
[1726606891555,0.04066938,60187.0,60186.0,0.19]
[1726606891857,0.04066938,60187.0,60186.0,0.197]
[1726606892167,0.001,60189.0,60188.0,0.083052]
[1726606892457,0.07374552,60189.0,60188.0,0.083052]
[1726606892646,0.07374552,60189.0,60188.0,1.181492]
[1726606893050,0.001,60189.0,60188.0,1.181492]
[1726606893255,0.00249276,60197.0,60188.0,1.09844]
[1726606893454,0.00249276,60197.0,60186.0,0.55172]
[1726606893455,0.00249276,60197.0,60196.0,0.633841]
[1726606895448,0.00349276,60197.0,60196.0,0.633841]
[1726606895854,0.00349276,60197.0,60196.0,1.732201]
[1726606896460,0.0979,60205.0,60202.0,0.083032]
[1726606896658,0.443817,60213.0,60206.0,0.083027]
[1726606896856,0.0975,60212.0,60206.0,0.083027]
[1726606897564,0.0975,60212.0,60204.0,0.19]
[1726606897565,0.0975,60212.0,60207.0,0.083026]
[1726606897751,0.180519,60212.0,60207.0,0.083026]
[1726606899049,0.180519,60212.0,60207.0,0.084026]
[1726606899252,0.0975,60212.0,60207.0,0.084026]
[1726606900158,0.083022,60210.0,60207.0,0.084026]
[1726606900559,0.083022,60210.0,60207.0,0.085026]
[1726606901664,0.083022,60210.0,60204.0,0.56124584]
[1726606901665,0.179724,60208.0,60204.0,0.36172]
[1726606901866,0.179724,60208.0,60204.0,0.3608]
[1726606902664,0.083028,60205.0,60204.0,0.3608]
[1726606902861,0.166056,60205.0,60204.0,0.3608]
[1726606903159,0.083034,60201.0,60196.0,0.36172]
[1726606903350,0.083034,60201.0,60198.0,0.00968157]
[1726606904661,0.083034,60201.0,60200.0,0.00349128]
[1726606904862,0.083034,60201.0,60200.0,0.08652628]
[1726606905063,0.001,60201.0,60200.0,0.08652628]
[1726606905262,0.002,60201.0,60200.0,0.08752628]
[1726606907054,0.002,60201.0,60200.0,0.08652628]
[1726606907854,0.0967,60208.0,60207.0,0.083026]
[1726606908057,0.0967,60208.0,60207.0,0.273026]
[1726606909057,0.0997,60208.0,60207.0,0.275026]
[1726606910267,0.0997,60208.0,60207.0,0.2846563]
[1726606912464,0.003,60208.0,60207.0,0.2846563]
[1726606914869,0.002,60208.0,60207.0,0.2846563]
[1726606918268,0.03406971,60208.0,60207.0,0.2846563]
[1726606918481,0.002,60208.0,60207.0,0.2846563]
[1726606920257,0.03406972,60208.0,60207.0,0.2846563]
[1726606922072,0.03406972,60208.0,60207.0,0.002]
[1726606922466,0.11709372,60208.0,60207.0,0.002]
[1726606922769,0.60157751,60208.0,60207.0,0.002]
[1726606923167,0.445824,60208.0,60207.0,0.002]
[1726606923869,0.45541324,60208.0,60207.0,0.002]
[1726606927572,0.53843724,60208.0,60207.0,0.002]
[1726606928263,0.083034,60201.0,60200.0,0.00249128]
[1726606928570,0.443834,60201.0,60200.0,0.00249128]
[1726606929367,0.717868,60201.0,60200.0,0.00349128]
[1726606929765,0.527868,60201.0,60200.0,0.00349128]
[1726606930376,0.529868,60201.0,60200.0,0.00349128]
[1726606930970,0.53977135,60201.0,60200.0,0.00349128]
[1726606933978,0.62280535,60201.0,60200.0,0.00349128]
[1726606934167,0.62280535,60201.0,60186.0,0.04943065]
[1726606934168,0.083053,60187.0,60186.0,0.04943065]
[1726606934369,0.083055,60186.0,60185.0,0.04943065]
[1726606934773,0.083055,60186.0,60184.0,0.05192287]
[1726606934774,0.083056,60185.0,60184.0,0.05192287]
[1726606935079,0.083056,60185.0,60184.0,0.00249222]
[1726606935573,0.075056,60185.0,60184.0,0.00249222]
[1726606936075,0.075056,60185.0,60184.0,0.01237103]
[1726606936373,0.158112,60185.0,60184.0,0.01237103]
[1726606936679,0.147112,60185.0,60184.0,0.01237103]
[1726606937280,0.065056,60185.0,60184.0,0.21837103]
[1726606937868,0.001,60185.0,60184.0,0.30142803]
[1726606938070,0.3608,60187.0,60186.0,0.083055]
[1726606939480,0.3608,60187.0,60186.0,0.088055]
[1726606940471,0.3608,60187.0,60186.0,0.089055]
[1726606945486,0.01234855,60195.0,60190.0,0.083048]
[1726606945679,0.01234855,60195.0,60190.0,0.19]
[1726606945882,0.00249235,60195.0,60194.0,0.273043]
[1726606946878,0.00549235,60195.0,60194.0,0.273043]
[1726606947271,0.00949235,60195.0,60194.0,0.274043]
[1726606947880,0.00549235,60195.0,60194.0,0.273043]
[1726606948493,0.00549235,60195.0,60194.0,0.274043]
[1726606948785,0.3608,60206.0,60205.0,0.083028]
[1726606948983,0.3608,60206.0,60205.0,0.273028]
[1726606949179,0.0995,60212.0,60211.0,0.08302]
[1726606949377,0.0024914,60214.0,60212.0,0.083017]
[1726606949784,0.0024914,60214.0,60213.0,0.083017]
[1726606950092,0.3608,60216.0,60210.0,0.19]
[1726606950093,0.3608,60216.0,60215.0,0.083015]
[1726606950393,0.3608,60216.0,60215.0,0.32240973]
[1726606950572,0.3608,60216.0,60215.0,0.273015]
[1726606951172,0.3688,60216.0,60215.0,0.3233797]
[1726606951384,0.008,60216.0,60215.0,0.3233797]
[1726606951584,0.008,60216.0,60215.0,0.32337493]
[1726606952083,0.008,60216.0,60215.0,0.32334894]
[1726606952273,0.008,60216.0,60215.0,1.42154894]
[1726606952678,0.018,60216.0,60215.0,1.42254894]
[1726606953076,0.018,60216.0,60215.0,1.373215]
[1726606953586,0.0024908,60225.0,60220.0,0.083008]
[1726606953803,0.0024908,60225.0,60220.0,0.273008]
[1726606953978,0.0024908,60225.0,60223.0,0.083003]
[1726606954178,0.0024908,60225.0,60224.0,0.19]
[1726606954396,0.0024908,60225.0,60224.0,0.273002]
[1726606955778,0.001,60225.0,60224.0,0.274002]
[1726606956000,0.001,60225.0,60224.0,0.28379725]
[1726606956292,0.001,60225.0,60224.0,0.28479725]
[1726606968492,0.4582,60229.0,60227.0,0.082997]
[1726606968696,0.4582,60229.0,60228.0,0.19]
[1726606970290,0.0974,60229.0,60228.0,0.273997]
[1726606971304,0.36200001,60230.0,60229.0,0.082995]
[1726606971490,0.0979,60233.0,60232.0,0.082991]
[1726606971691,0.0979,60233.0,60232.0,0.272991]